bitfinex-derivatives/quotes_SOLF0:USTF0_20241230
["timestamp","ask_amount","ask_price","bid_price","bid_amount"]
[1735538587214,2.6189,191.32,191.28,11.40480064]
[1735538587814,8.40480064,191.35,191.28,8.40480064]
[1735538588024,1.5827,191.34,191.28,8.40480064]
[1735538588827,8.40480064,191.37,191.3,8.40480064]
[1735538590029,2.6186,191.34,191.3,8.40480064]
[1735538590621,8.40480064,191.35,191.3,8.40480064]
[1735538591028,2.6188,191.33,191.3,8.40480064]
[1735538591227,2.6188,191.33,191.29,2.6192]
[1735538591628,2.6189,191.32,191.28,8.40480064]
[1735538592028,8.40480064,191.35,191.28,8.40480064]
[1735538592731,2.6192,191.3,191.28,8.40480064]
[1735538592921,2.6192,191.3,191.26,43.9504295]
[1735538593229,2.6192,191.3,191.26,8.40480064]
[1735538593832,2.6194,191.29,191.26,8.40480064]
[1735538594224,2.6195,191.28,191.24,8.40480064]
[1735538594434,8.40480064,191.31,191.24,8.40480064]
[1735538595533,1.5334,191.32,191.27,2.6196]
[1735538595826,1.5334,191.32,191.28,4.09846497]
[1735538596028,1.5334,191.32,191.27,2.6196]
[1735538596225,1.5334,191.32,191.28,4.0972949]
[1735538596426,1.5334,191.32,191.26,11.02450064]
[1735538596626,1.5334,191.32,191.27,4.09817738]
[1735538596828,1.5334,191.32,191.26,8.40480064]
[1735538597029,9.93820064,191.32,191.27,4.09814329]
[1735538597336,9.93820064,191.32,191.26,8.40480064]
[1735538597535,12.55710064,191.32,191.27,4.09826845]
[1735538597835,12.55710064,191.32,191.26,8.40480064]
[1735538598032,12.55710064,191.32,191.27,4.09845162]
[1735538598232,12.55710064,191.32,191.28,4.09838678]
[1735538598432,12.55710064,191.32,191.27,2.6195]
[1735538599431,2.6189,191.32,191.28,4.09834696]
[1735538599630,2.6189,191.32,191.27,2.6195]
[1735538599827,2.6189,191.32,191.28,6.71772477]
[1735538600030,2.6189,191.32,191.28,2.6194]
[1735538600342,8.40480064,191.34,191.28,8.40480064]
[1735538600534,2.6186,191.34,191.3,2.6192]
[1735538600732,8.40480064,191.36,191.28,8.40480064]
[1735538600933,2.6185,191.35,191.31,2.6189]
[1735538601836,8.40480064,191.36,191.31,2.6189]
[1735538602137,2.6186,191.34,191.3,2.6191]
[1735538602434,2.6181,191.39,191.34,2.6185]
[1735538602640,2.6181,191.39,191.34,8.40480064]
[1735538602937,2.6178,191.4,191.36,2.6183]
[1735538603137,10.01750064,191.43,191.36,8.40480064]
[1735538603731,10.01750064,191.43,191.36,11.40480064]
[1735538604033,2.6175,191.42,191.38,8.40480064]
[1735538604235,8.40480064,191.45,191.38,8.40480064]
[1735538604738,8.40480064,191.45,191.39,4.09405755]
[1735538604940,8.40480064,191.45,191.38,8.40480064]
[1735538605136,8.40480064,191.45,191.39,4.09394682]
[1735538605332,8.40480064,191.45,191.4,6.71174682]
[1735538605537,2.6171,191.46,191.4,8.40480064]
[1735538606333,8.40480064,191.47,191.41,6.70931779]
[1735538606334,2.6171,191.45,191.41,6.70931779]
[1735538606640,2.6171,191.45,191.4,8.40480064]
[1735538606833,2.6171,191.45,191.41,4.09141391]
[1735538607040,2.6171,191.45,191.4,8.40480064]
[1735538607234,2.6171,191.45,191.41,4.09101724]
[1735538607435,2.6171,191.45,191.4,8.40480064]
[1735538607636,2.6171,191.45,191.41,4.09061793]
[1735538607834,8.40480064,191.47,191.42,8.40480064]
[1735538608139,11.02170064,191.47,191.42,8.40480064]
[1735538609641,11.02170064,191.47,191.42,11.02220064]
[1735538609936,2.6171,191.45,191.41,3.0]
[1735538610936,2.617,191.46,191.41,5.6176]
[1735538611442,11.02160064,191.47,191.42,2.6175]
[1735538611637,11.02160064,191.47,191.42,11.02230064]
[1735538612044,2.6167,191.48,191.43,2.6174]
[1735538615243,2.6169,191.47,191.43,2.6174]
[1735538617250,1.6127,191.51,191.44,8.40480064]
[1735538617547,10.01750064,191.51,191.44,8.40480064]
[1735538618548,2.6164,191.5,191.46,2.6169]
[1735538621049,58.23442722,191.56,191.5,2.6163]
[1735538621050,2.6158,191.54,191.5,2.6163]
[1735538621454,8.40480064,191.55,191.48,8.40480064]
[1735538621955,2.6158,191.54,191.5,2.6163]
[1735538622152,2.6158,191.54,191.48,8.40480064]
[1735538622543,2.616,191.53,191.49,2.6165]
[1735538628160,2.6159,191.54,191.5,11.02130064]
[1735538628957,2.6155,191.58,191.52,8.40480064]
[1735538629755,2.6155,191.58,191.54,2.6158]
[1735538630763,3.0971,191.63,191.54,8.40480064]
[1735538630956,8.40480064,191.62,191.56,8.40480064]
[1735538631864,2.6148,191.62,191.58,2.6154]
[1735538633864,2.6148,191.62,191.56,8.40480064]
[1735538634057,2.6148,191.62,191.57,2.6154]
[1735538636460,2.6148,191.62,191.58,2.6153]
[1735538636660,2.6146,191.64,191.58,8.40480064]
[1735538637665,8.40480064,191.61,191.53,1.5545]
[1735538637861,8.40480064,191.61,191.54,8.40480064]
[1735538638171,2.6152,191.59,191.54,8.40480064]
[1735538638370,8.40480064,191.61,191.54,8.40480064]
[1735538639473,2.6152,191.59,191.54,11.02060064]
[1735538640070,8.40480064,191.6,191.54,8.40480064]
[1735538640672,8.40480064,191.6,191.56,2.6156]
[1735538641172,2.6151,191.61,191.57,2.6155]
[1735538641374,8.40480064,191.64,191.58,8.40480064]
[1735538641771,8.40480064,191.64,191.58,11.40480064]
[1735538642175,2.6147,191.63,191.58,11.40480064]
[1735538643076,8.40480064,191.64,191.6,2.615]
[1735538643771,2.6145,191.65,191.6,11.01980064]
[1735538645978,2.6146,191.64,191.6,11.01980064]
[1735538646175,8.40480064,191.66,191.6,8.40480064]
[1735538646373,8.40480064,191.66,191.62,2.6148]
[1735538647176,11.01920064,191.66,191.62,2.6148]
[1735538649577,8.40480064,191.66,191.62,2.6148]
[1735538649781,2.6144,191.65,191.62,2.6148]
[1735538650181,8.40480064,191.66,191.6,8.40480064]
[1735538650377,8.40480064,191.66,191.63,2.6146]
[1735538652381,3.0,191.76,191.64,8.40480064]
[1735538652585,8.40480064,191.71,191.64,8.40480064]
[1735538652783,8.40480064,191.69,191.63,3.0]
[1735538653081,2.6142,191.67,191.63,5.6147]
[1735538653782,8.40480064,191.67,191.63,3.0]
[1735538654180,4.6434,191.78,191.6,8.40480064]
[1735538654181,8.40480064,191.65,191.6,8.40480064]
[1735538655381,8.40480064,191.65,191.59,1.4785]
[1735538655581,8.40480064,191.65,191.58,11.40480064]
[1735538655984,8.40480064,191.65,191.58,8.40480064]
[1735538657281,2.6147,191.63,191.58,8.40480064]
[1735538657980,8.40480064,191.65,191.59,2.6152]
[1735538658184,2.6148,191.62,191.59,2.6152]
[1735538658583,8.40480064,191.65,191.58,8.40480064]
[1735538658783,2.615,191.61,191.57,5.6155]
[1735538660487,2.615,191.61,191.57,2.6155]
[1735538660888,2.615,191.61,191.56,8.40480064]
[1735538661080,2.6147,191.63,191.58,8.40480064]
[1735538662289,4.7102,191.69,191.62,8.40480064]
[1735538662290,8.40480064,191.67,191.62,8.40480064]
[1735538662991,2.6144,191.66,191.62,11.01960064]
[1735538663491,11.48780064,191.69,191.62,11.01960064]
[1735538663687,2.6145,191.65,191.62,11.01960064]
[1735538665089,2.6142,191.67,191.62,11.01960064]
[1735538665290,9.94140064,191.69,191.64,2.6145]
[1735538665493,9.94140064,191.69,191.64,11.01930064]
[1735538665791,9.94140064,191.69,191.64,8.40480064]
[1735538665991,9.94140064,191.69,191.64,2.6145]
[1735538667382,2.6134,191.73,191.64,2.6145]
[1735538667591,21.84005914,191.76,191.64,2.6145]
[1735538667592,8.40480064,191.7,191.64,2.6145]
[1735538667993,2.6145,191.66,191.62,5.6149]
[1735538668189,8.40480064,191.68,191.6,8.40480064]
[1735538668488,2.6147,191.64,191.58,14.02020064]
[1735538668691,8.40480064,191.64,191.59,4.08151698]
[1735538668892,8.40480064,191.64,191.58,3.0]
[1735538669093,2.6151,191.61,191.58,3.0]
[1735538669492,2.6151,191.61,191.59,4.08334038]
[1735538669689,2.6151,191.61,191.58,3.0]
[1735538670491,2.6149,191.62,191.59,4.08321249]
[1735538670693,2.6149,191.62,191.58,3.0]
[1735538670894,2.6149,191.62,191.59,4.08266108]
[1735538671097,11.01950064,191.64,191.6,4.08250938]
[1735538671295,2.6147,191.64,191.58,3.0]
[1735538671495,2.6147,191.64,191.59,4.08232791]
[1735538671694,2.6147,191.64,191.6,2.6152]
[1735538672091,11.01950064,191.64,191.6,2.6152]
[1735538672300,2.6148,191.63,191.59,2.6153]
[1735538672497,9.95270064,191.66,191.6,8.40480064]
[1735538672801,11.01920064,191.66,191.62,2.6148]
[1735538673300,11.01920064,191.66,191.6,8.40480064]
[1735538673301,8.40480064,191.64,191.58,3.0]
[1735538673496,8.40480064,191.62,191.55,8.40480064]
[1735538673699,8.40480064,191.62,191.56,4.08481414]
[1735538673998,8.40480064,191.62,191.57,4.08481414]
[1735538674200,8.40480064,191.62,191.58,4.08481414]
[1735538674400,8.40480064,191.62,191.55,8.40480064]
[1735538674602,8.40480064,191.62,191.56,4.0846944]
[1735538674800,8.40480064,191.62,191.57,4.0846944]
[1735538674995,8.40480064,191.62,191.58,4.0846944]
[1735538675200,8.40480064,191.62,191.59,4.0846944]
[1735538675400,2.6152,191.61,191.57,2.6155]
[1735538675599,2.6152,191.61,191.58,4.08578349]
[1735538675799,2.6152,191.61,191.59,4.08578349]
[1735538676001,2.6152,191.61,191.57,2.6155]
[1735538676295,2.6152,191.61,191.58,4.08559818]
[1735538676604,2.6149,191.62,191.59,4.08559818]
[1735538676793,2.6149,191.62,191.6,4.08559818]
[1735538676997,11.01950064,191.64,191.59,2.6153]
[1735538677205,11.01950064,191.64,191.6,4.08534346]
[1735538677401,11.01950064,191.64,191.59,2.6153]
[1735538677402,11.01950064,191.64,191.61,4.08482497]
[1735538677701,23.32595914,191.71,191.61,8.40480064]
[1735538677901,8.40480064,191.68,191.62,4.08329339]
[1735538678103,8.40480064,191.68,191.63,4.08329339]
[1735538678297,8.40480064,191.68,191.64,4.08329339]
[1735538678496,8.40480064,191.68,191.61,8.40480064]
[1735538678704,8.40480064,191.68,191.62,4.08296797]
[1735538678903,2.6142,191.67,191.63,6.69756797]
[1735538679098,2.6142,191.67,191.64,4.08243236]
[1735538679294,2.6142,191.67,191.63,2.6146]
[1735538679502,2.6142,191.67,191.64,4.08262766]
[1735538679702,2.6142,191.67,191.65,4.08242212]
[1735538679901,2.614,191.69,191.63,11.01940064]
[1735538680100,2.614,191.69,191.64,4.08219272]
[1735538680402,8.40480064,191.68,191.61,11.01980064]
[1735538680706,2.6145,191.65,191.62,4.0831531]
[1735538680900,2.6145,191.65,191.63,4.0831531]
[1735538681206,2.6145,191.65,191.61,11.01980064]
[1735538681403,2.6145,191.65,191.62,4.08317329]
[1735538681604,2.6145,191.65,191.63,4.08317329]
[1735538681803,2.6145,191.65,191.61,11.01980064]
[1735538682004,2.6145,191.65,191.62,4.08370607]
[1735538682301,2.6145,191.65,191.63,4.08370607]
[1735538682507,8.40480064,191.68,191.64,4.08370607]
[1735538682702,8.40480064,191.68,191.65,4.08370607]
[1735538682904,8.40480064,191.7,191.66,4.08370607]
[1735538683095,2.6141,191.68,191.64,2.6145]
[1735538683301,8.40480064,191.7,191.65,4.0816152]
[1735538683500,8.40480064,191.7,191.66,4.0816152]
[1735538683705,8.40480064,191.7,191.63,8.40480064]
[1735538683905,8.40480064,191.7,191.64,4.08254435]
[1735538684108,8.40480064,191.68,191.6,3.0]
[1735538684308,8.40480064,191.66,191.61,4.08493382]
[1735538684503,8.40480064,191.66,191.62,4.08493382]
[1735538684702,2.6148,191.63,191.6,8.40480064]
[1735538684901,2.6148,191.63,191.61,4.08695532]
[1735538685103,2.6148,191.63,191.62,4.08695532]
[1735538685404,2.6148,191.63,191.62,4.08769065]
[1735538687710,2.6145,191.65,191.62,4.08769065]
[1735538687909,8.40480064,191.66,191.63,4.08769065]
[1735538688209,8.40480064,191.66,191.6,8.40480064]
[1735538688611,8.40480064,191.66,191.61,4.08954667]
[1735538688814,8.40480064,191.66,191.62,4.08954667]
[1735538689002,8.40480064,191.66,191.6,8.40480064]
[1735538689210,8.40480064,191.66,191.63,4.08958739]
[1735538689410,2.6146,191.64,191.6,11.02000064]
[1735538689611,2.6146,191.64,191.61,4.08990396]
[1735538689814,2.6146,191.64,191.62,4.08990396]
[1735538690008,2.6146,191.64,191.63,4.08990396]
[1735538691613,2.6146,191.64,191.6,11.02000064]
[1735538691814,2.6146,191.64,191.61,4.09021044]
[1735538692109,2.6146,191.64,191.62,4.09021044]
[1735538692516,2.6146,191.64,191.63,4.09021044]
[1735538693913,2.6146,191.64,191.6,11.02000064]
[1735538694118,2.6146,191.64,191.63,4.09066212]
[1735538694615,2.6148,191.63,191.6,11.02000064]
[1735538694815,2.6148,191.63,191.61,4.09146386]
[1735538695014,2.6148,191.63,191.62,4.09146386]
[1735538696919,8.40480064,191.64,191.58,11.02020064]
[1735538697117,2.6151,191.61,191.59,4.09142622]
[1735538697420,2.6151,191.61,191.6,4.09142622]
[1735538697923,8.40480064,191.64,191.6,4.09142622]
[1735538698119,2.6149,191.63,191.61,4.09142622]
[1735538698318,2.6149,191.63,191.62,4.09142622]
[1735538698615,8.40480064,191.64,191.62,4.09142622]
[1735538698616,11.01940064,191.64,191.62,4.09142622]
[1735538698815,11.01940064,191.64,191.6,2.6151]
[1735538699014,11.01940064,191.64,191.61,4.09260384]
[1735538699213,11.01940064,191.64,191.62,4.09260384]
[1735538699414,11.01940064,191.64,191.6,2.6151]
[1735538699612,11.01940064,191.64,191.61,4.09262069]
[1735538699815,11.01940064,191.64,191.62,4.09262069]
[1735538700016,11.01940064,191.64,191.6,2.6151]
[1735538700216,11.01940064,191.64,191.61,4.09262011]
[1735538700415,11.01940064,191.64,191.62,4.09262011]
[1735538700620,11.01940064,191.64,191.6,2.6151]
[1735538700926,11.01940064,191.64,191.61,4.09353725]
[1735538701115,11.01940064,191.64,191.62,4.09353725]
[1735538701318,11.01940064,191.64,191.61,2.615]
[1735538701621,11.01940064,191.64,191.62,4.09362261]
[1735538701816,11.01940064,191.64,191.61,2.615]
[1735538702020,2.6148,191.63,191.62,4.09372126]
[1735538702318,8.40480064,191.64,191.54,10.81918758]
[1735538702518,3.0955,191.71,191.54,13.43508758]
[1735538702519,2.6154,191.59,191.54,13.43508758]
[1735538702719,8.40480064,191.63,191.56,8.40480064]
[1735538702916,8.40480064,191.63,191.58,8.40480064]
[1735538703419,8.40480064,191.63,191.56,8.40480064]
[1735538704530,2.6149,191.62,191.58,2.6154]
[1735538705020,8.40480064,191.63,191.56,8.40480064]
[1735538705217,2.6151,191.61,191.56,11.02050064]
[1735538705529,2.6151,191.61,191.56,8.40480064]
[1735538705721,2.6151,191.61,191.57,2.6155]
[1735538706127,2.6151,191.61,191.56,8.40480064]
[1735538706329,2.6151,191.61,191.58,2.6154]
[1735538706527,8.40480064,191.63,191.56,8.40480064]
[1735538706728,11.01970064,191.63,191.56,8.40480064]
[1735538707528,11.01970064,191.63,191.58,2.6154]
[1735538709129,11.01970064,191.63,191.59,2.6153]
[1735538709626,8.40480064,191.63,191.56,8.40480064]
[1735538709831,2.6147,191.64,191.6,2.6151]
[1735538711928,1.5688,191.7,191.6,8.40480064]
[1735538712132,8.40480064,191.68,191.62,8.40480064]
[1735538712431,2.614,191.69,191.62,8.40480064]
[1735538713024,9.97360064,191.7,191.62,8.40480064]
[1735538713227,2.6141,191.68,191.64,2.6145]
[1735538714027,9.97360064,191.7,191.62,8.40480064]
[1735538714332,2.614,191.69,191.65,2.6145]
[1735538714633,2.614,191.69,191.66,4.05107455]
[1735538714832,2.614,191.69,191.67,4.04972092]
[1735538715035,2.614,191.69,191.68,4.04972092]
[1735538717137,2.6141,191.68,191.64,11.01940064]
[1735538717336,2.6141,191.68,191.65,4.049982]
[1735538717537,2.6141,191.68,191.66,4.049982]
[1735538717741,2.6141,191.68,191.67,4.049982]
[1735538718333,4.1826,191.7,191.67,4.049982]
[1735538718537,4.1826,191.7,191.68,4.049982]
[1735538718735,8.40480064,191.73,191.65,8.40480064]
[1735538718947,8.40480064,191.73,191.66,4.04984895]
[1735538719141,2.6136,191.72,191.68,2.614]
[1735538719741,8.40480064,191.73,191.65,8.40480064]
[1735538719940,2.6137,191.71,191.67,2.6142]
[1735538720145,2.6137,191.71,191.68,4.04947]
[1735538720444,2.6137,191.71,191.69,4.04954225]
[1735538720646,2.6139,191.7,191.65,11.01930064]
[1735538720945,8.40480064,191.71,191.66,4.04925733]
[1735538721143,8.40480064,191.71,191.67,4.04925733]
[1735538721343,8.40480064,191.71,191.68,4.0495151]
[1735538721545,8.40480064,191.71,191.65,8.40480064]
[1735538721743,2.6135,191.72,191.67,8.40480064]
[1735538722046,2.6135,191.72,191.68,4.04824947]
[1735538722242,2.6135,191.72,191.69,4.04824947]
[1735538722444,56.64716768,191.77,191.69,8.40480064]
[1735538722643,65.05196832,191.77,191.7,4.04729713]
[1735538722843,65.05196832,191.77,191.69,8.40480064]
[1735538723043,65.05196832,191.77,191.7,4.04539056]
[1735538723343,65.05196832,191.77,191.69,8.40480064]
[1735538723547,2.6133,191.75,191.7,6.65883826]
[1735538723736,2.6133,191.75,191.7,2.6137]
[1735538724750,2.6133,191.75,191.71,4.04200199]
[1735538724942,2.6133,191.75,191.7,2.6137]
[1735538725138,2.6133,191.75,191.71,4.04200199]
[1735538725343,2.6133,191.75,191.7,2.6137]
[1735538725540,2.6133,191.75,191.71,4.04177528]
[1735538725737,2.6133,191.75,191.7,2.6137]
[1735538726050,8.40480064,191.75,191.69,11.40480064]
[1735538726342,8.40480064,191.75,191.7,4.04065704]
[1735538726550,2.6135,191.73,191.69,14.01870064]
[1735538726742,2.6135,191.73,191.7,4.03918939]
[1735538726939,2.6135,191.73,191.69,14.01870064]
[1735538727249,2.6135,191.73,191.7,4.03920371]
[1735538727441,2.6135,191.73,191.69,14.01870064]
[1735538727643,2.6135,191.73,191.7,4.03793047]
[1735538727845,2.6135,191.73,191.69,14.01870064]
[1735538728045,8.40480064,191.75,191.69,14.01870064]
[1735538728346,2.6133,191.74,191.7,4.03793227]
[1735538728542,8.40480064,191.75,191.7,2.6137]
[1735538728747,11.01810064,191.75,191.7,2.6137]
[1735538728955,8.40480064,191.75,191.7,2.6137]
[1735538729152,8.40480064,191.75,191.69,5.6139]
[1735538729352,8.40480064,191.75,191.7,4.03703268]
[1735538729555,8.40480064,191.75,191.7,8.40480064]
[1735538729746,8.40480064,191.76,191.7,8.40480064]
[1735538730050,1.90796032,191.79,191.69,3.0]
[1735538730051,8.40480064,191.81,191.76,2.613]
[1735538730549,8.40480064,191.79,191.74,3.0]
[1735538731249,8.40480064,191.81,191.74,11.40480064]
[1735538732452,2.6125,191.8,191.75,2.613]
[1735538733257,2.6128,191.78,191.73,2.6133]
[1735538733554,1.6256,191.8,191.71,3.0]
[1735538733754,8.40480064,191.76,191.71,3.0]
[1735538734354,2.6132,191.75,191.71,5.6135]
[1735538734559,8.40480064,191.76,191.71,3.0]
[1735538735455,11.01790064,191.76,191.72,2.6135]
[1735538735656,8.40480064,191.76,191.71,3.0]
[1735538736257,11.01780064,191.76,191.71,5.6135]
[1735538736459,8.40480064,191.76,191.71,3.0]
[1735538737954,2.6133,191.74,191.71,3.0]
[1735538743257,2.6133,191.74,191.7,2.6138]
[1735538744667,2.6134,191.73,191.68,5.614]
[1735538745467,2.6134,191.73,191.69,2.6139]
[1735538748264,8.40480064,191.75,191.68,3.0]
[1735538748461,8.40480064,191.73,191.65,11.40480064]
[1735538748663,8.40480064,191.71,191.66,4.04101616]
[1735538748969,8.40480064,191.71,191.65,11.40480064]
[1735538749167,2.6139,191.69,191.65,14.01920064]
[1735538749364,8.40480064,191.71,191.65,11.40480064]
[1735538750169,2.6139,191.7,191.66,2.6143]
[1735538750366,2.6139,191.7,191.64,3.0414]
[1735538750367,8.40480064,191.71,191.64,3.0414]
[1735538750672,8.40480064,191.7,191.63,8.40480064]
[1735538750865,2.6142,191.68,191.64,4.04517334]
[1735538751169,2.6142,191.68,191.63,11.01950064]
[1735538751368,2.6142,191.68,191.64,6.65980856]
[1735538751570,2.6143,191.67,191.59,1.612]
[1735538751768,2.6143,191.67,191.61,8.40480064]
[1735538751968,8.40480064,191.68,191.62,6.66115891]
[1735538752270,8.40480064,191.68,191.63,4.04635891]
[1735538752471,8.40480064,191.68,191.62,2.6148]
[1735538752676,8.40480064,191.68,191.63,4.04809532]
[1735538752971,8.40480064,191.68,191.62,2.6148]
[1735538753167,8.40480064,191.68,191.63,4.04820717]
[1735538753366,8.40480064,191.66,191.6,2.6151]
[1735538753567,8.40480064,191.66,191.61,4.04974079]
[1735538753771,8.40480064,191.66,191.6,2.6151]
[1735538753971,8.40480064,191.66,191.61,4.05016975]
[1735538754166,8.40480064,191.66,191.6,2.6151]
[1735538754367,8.40480064,191.66,191.61,4.05043061]
[1735538754671,2.6147,191.64,191.6,2.6151]
[1735538754871,2.6147,191.64,191.61,4.05091366]
[1735538755073,11.01930064,191.66,191.62,2.6149]
[1735538755275,8.40480064,191.68,191.61,8.40480064]
[1735538755468,8.40480064,191.68,191.62,4.05046196]
[1735538755664,8.40480064,191.68,191.63,2.6147]
[1735538756173,2.6143,191.67,191.63,2.6147]
[1735538757375,2.6143,191.67,191.62,2.6149]
[1735538758177,2.6143,191.67,191.61,8.40480064]
[1735538758372,8.40480064,191.69,191.63,8.40480064]
[1735538758573,2.6141,191.69,191.63,8.40480064]
[1735538759374,2.6141,191.69,191.65,2.6144]
[1735538759578,2.6141,191.69,191.65,11.01920064]
[1735538761179,2.6141,191.69,191.65,2.6144]
[1735538761371,2.6141,191.68,191.63,11.01940064]
[1735538761974,2.6141,191.68,191.64,2.6146]
[1735538763072,2.6146,191.64,191.61,11.01980064]
[1735538763279,8.40480064,191.66,191.62,4.05120914]
[1735538763469,8.40480064,191.66,191.5,57.6453575]
[1735538763470,8.40480064,191.64,191.63,4.05120914]
[1735538763671,8.40480064,191.66,191.63,4.05120914]
[1735538763974,11.01920064,191.66,191.64,4.05120914]
[1735538764177,11.01920064,191.66,191.62,2.6149]
[1735538764575,11.01920064,191.66,191.63,4.04972454]
[1735538764775,11.01920064,191.66,191.64,4.04972454]
[1735538764976,8.40480064,191.66,191.59,8.40480064]
[1735538765172,8.40480064,191.66,191.6,6.66445999]
[1735538765378,8.40480064,191.66,191.61,4.04945999]
[1735538765578,8.40480064,191.66,191.62,4.04945999]
[1735538765880,8.40480064,191.66,191.59,8.40480064]
[1735538766081,8.40480064,191.66,191.6,4.04993689]
[1735538766281,8.40480064,191.66,191.61,4.04993689]
[1735538766582,8.40480064,191.66,191.59,8.40480064]
[1735538766782,8.40480064,191.66,191.6,4.05018013]
[1735538766982,8.40480064,191.66,191.62,2.6148]
[1735538767581,2.6145,191.65,191.57,3.0]
[1735538767781,8.40480064,191.64,191.58,12.4545784]
[1735538767982,8.40480064,191.64,191.59,4.04977776]
[1735538768188,8.40480064,191.64,191.58,8.40480064]
[1735538768385,8.40480064,191.64,191.59,4.04982622]
[1735538768581,8.40480064,191.64,191.58,8.40480064]
[1735538768783,8.40480064,191.64,191.59,6.66480184]
[1735538768784,2.6148,191.63,191.59,6.66480184]
[1735538768986,2.6148,191.63,191.59,2.6152]
[1735538772686,8.40480064,191.62,191.59,2.6152]
[1735538774188,11.01970064,191.62,191.59,2.6152]
[1735538774487,8.40480064,191.62,191.57,2.6156]
[1735538774786,8.40480064,191.62,191.55,14.52880064]
[1735538774982,8.40480064,191.62,191.56,4.04875283]
[1735538775290,8.40480064,191.62,191.57,4.04875283]
[1735538775483,2.615,191.61,191.57,2.6156]
[1735538775787,2.615,191.61,191.55,14.52880064]
[1735538775978,8.40480064,191.62,191.6,2.6151]
[1735538776182,2.6147,191.64,191.6,2.6151]
[1735538776183,11.01950064,191.64,191.6,2.6151]
[1735538777288,2.6148,191.63,191.6,2.6151]
[1735538777988,8.40480064,191.64,191.58,8.40480064]
[1735538779485,8.40480064,191.62,191.54,3.0]
[1735538779694,2.6153,191.59,191.55,2.6158]
[1735538779987,2.6153,191.59,191.56,4.05464771]
[1735538780190,8.40480064,191.58,191.5,3.1365]
[1735538780386,2.6156,191.57,191.51,4.05524783]
[1735538780689,2.6156,191.57,191.5,14.54130064]
[1735538780880,8.40480064,191.58,191.52,8.40480064]
[1735538781085,8.40480064,191.58,191.55,2.6158]
[1735538781585,11.02040064,191.58,191.53,2.616]
[1735538781783,8.40480064,191.58,191.52,8.40480064]
[1735538781983,1.5657,191.63,191.53,4.05652578]
[1735538782179,1.5657,191.63,191.56,8.40480064]
[1735538782180,9.97050064,191.63,191.56,8.40480064]
[1735538782886,8.40480064,191.59,191.55,3.0]
[1735538783082,8.40480064,191.59,191.52,8.40480064]
[1735538783291,8.40480064,191.59,191.53,4.05572496]
[1735538783589,8.40480064,191.59,191.53,2.6161]
[1735538783792,8.40480064,191.57,191.5,11.54130064]
[1735538784095,8.40480064,191.57,191.51,4.05801527]
[1735538784286,8.40480064,191.57,191.52,4.05801527]
[1735538784480,8.40480064,191.57,191.53,4.05801527]
[1735538784683,8.40480064,191.57,191.5,11.54130064]
[1735538784988,8.40480064,191.57,191.51,4.05725284]
[1735538785189,11.02040064,191.57,191.52,4.05725284]
[1735538785389,11.02040064,191.57,191.53,4.05725284]
[1735538785591,11.02040064,191.57,191.5,11.54130064]
[1735538785787,11.02040064,191.57,191.52,2.6162]
[1735538785983,11.02040064,191.57,191.53,4.05687933]
[1735538786186,11.02040064,191.57,191.5,11.54130064]
[1735538786383,8.40480064,191.59,191.52,8.40480064]
[1735538786587,8.40480064,191.61,191.54,8.40480064]
[1735538786788,8.40480064,191.61,191.55,4.05599771]
[1735538786992,8.40480064,191.61,191.58,2.6154]
[1735538787290,9.97050064,191.63,191.56,8.40480064]
[1735538787791,9.97050064,191.63,191.59,2.6152]
[1735538788094,8.40480064,191.63,191.59,2.6152]
[1735538788394,11.01960064,191.63,191.58,2.6154]
[1735538788890,8.40480064,191.63,191.56,8.40480064]
[1735538789096,8.40480064,191.61,191.54,11.40480064]
[1735538789387,8.40480064,191.57,191.5,14.54130064]
[1735538789789,8.40480064,191.57,191.51,4.05980281]
[1735538789991,2.6157,191.56,191.52,4.05980281]
[1735538790195,2.6157,191.56,191.5,14.54130064]
[1735538790390,8.40480064,191.57,191.51,4.05905769]
[1735538790592,8.40480064,191.57,191.52,4.05905769]
[1735538790787,8.40480064,191.57,191.53,4.05905769]
[1735538790997,8.40480064,191.57,191.5,14.54130064]
[1735538791195,8.40480064,191.57,191.51,4.06133971]
[1735538791391,11.02040064,191.57,191.53,2.6161]
[1735538791592,8.40480064,191.57,191.5,14.54130064]
[1735538791793,8.40480064,191.57,191.51,4.06197329]
[1735538792099,8.40480064,191.57,191.52,4.06197329]
[1735538792398,8.40480064,191.57,191.53,4.06197329]
[1735538792599,8.40480064,191.57,191.5,11.54130064]
[1735538792899,8.40480064,191.57,191.51,4.06266069]